[Event "36th Belgrade Trophy 2023"]
[Site "Belgrade"]
[Date "2023.11.27"]
[Round "3.15"]
[White "Gusev, Mikhail"]
[Black "Scekic, Veljko"]
[Result "1/2-1/2"]
[ECO "B48"]
[WhiteElo "2055"]
[BlackElo "2211"]
[Annotator "RC"]
[PlyCount "64"]
[EventDate "2023.10.23"]
[EventType "swiss"]
[EventCountry "SRB"]
[SourceTitle "playchess.com"]
[Source "ChessBase"]
[SourceQuality "1"]
[TimeControl "40/5400+30:900+30"]

1. e4 {[%emt 0:00:02]} c5 {[%emt 0:00:06]} 2. Nf3 {[%emt 0:00:04]} e6 {[%emt 0:00:06]} 3. d4 {[%emt 0:00:03]} cxd4 {[%emt 0:00:10]} 4. Nxd4 {[%emt 0:00:05]} Nc6 {[%emt 0:00:05]} 5. Nc3 {[%emt 0:00:05]} Qc7 {[%emt 0:00:05]} 6. Be3 {[%emt 0:00:21]} a6 {[%emt 0:00:08]} 7. g3 {[%emt 0:05:39]} Nf6 {[%emt 0:01:31]} 8. Bg2 {[%emt 0:00:34]} Nxd4 {[%emt 0:02:42]} 9. Qxd4 {[%emt 0:04:32]} d6 {[%emt 0:03:37]} 10. Qb6 {[%emt 0:04:09]} Qxb6 {[%emt 0:01:00]} 11. Bxb6 {[%emt 0:00:02]} e5 {[%emt 0:02:13]} 12. O-O-O {[%emt 0:02:12]} Be6 {[%emt 0:00:21]} 13. f4 {[%emt 0:03:40]} Rc8 {[%emt 0:00:51]} 14. Rhe1 {[%emt 0:12:58]} Be7 {[%emt 0:05:12]} 15. fxe5 {[%emt 0:09:44]} dxe5 {[%emt 0:00:09]} 16. Nd5 {[%emt 0:00:16]} Nxd5 {[%emt 0:08:20]} 17. exd5 {[%emt 0:00:02]} Bf5 {[%emt 0:00:08]} 18. Be4 {[%emt 0:04:23]} Bxe4 {[%emt 0:00:19]} 19. Rxe4 {[%emt 0:00:32]} Bd6 {[%emt 0:00:11]} 20. g4 {[%emt 0:03:03]} h5 {[%emt 0:03:53]} 21. g5 {[%emt 0:05:15]} f5 {[%emt 0:00:26]} 22. gxf6 {[%emt 0:01:29]} gxf6 {[%emt 0:00:06]} 23. Rf1 {[%emt 0:01:50]} Kf7 {[%emt 0:01:55]} 24. c4 {[%emt 0:08:12]} Rhg8 {[%emt 0:00:41]} 25. Rf2 {[%emt 0:03:46]} Rg1+ {[%emt 0:03:52]} 26. Kd2 {[%emt 0:01:34]} Rg4 {[%emt 0:00:15]} 27. Rxg4 {[%emt 0:01:05]} hxg4 {[%emt 0:00:04]} 28. Kd3 {[%emt 0:01:36]} e4+ {[%emt 0:01:38]} 29. Kxe4 {[%emt 0:01:25]} Rxc4+ {[%emt 0:00:12]} 30. Kf5 {[%emt 0:08:41]} g3 {[%emt 0:04:59]} 31. hxg3 {[%emt 0:00:01]} Bxg3 {[%emt 0:00:11]} 32. Rf3 {[%emt 0:00:17]} Be5 {[%emt 0:00:26]} 1/2-1/2

[Event "36th Belgrade Trophy 2023"]
[Site "Belgrade"]
[Date "2023.11.28"]
[Round "4.1"]
[White "Antic, Dejan"]
[Black "Nenezic, Marko"]
[Result "1/2-1/2"]
[ECO "E94"]
[WhiteElo "2362"]
[BlackElo "2499"]
[Annotator "TA"]
[PlyCount "93"]
[EventDate "2023.10.23"]
[EventType "swiss"]
[EventCountry "SRB"]
[SourceTitle "playchess.com"]
[Source "ChessBase"]
[SourceQuality "1"]
[TimeControl "40/5400+30:900+30"]

{[%evp 15,93,40,32,39,33,22,45,40,56,30,37,14,44,18,24,24,30,-7,-12,-21,-29,-23,-18,-29,-29,-23,-23,-36,-24,-24,0,0,0,-7,-7,-27,-14,-34,42,-66,-51,-66,-54,-88,-95,-150,-103,-133,-14,-17,11,1,2,15,39,19,61,61,62,8,107,0,0,0,0,0,0,0,0,0,0,0,0,0,0,0,0,0,0,0]} 1. d4 {[%emt 0:00:05]} Nf6 {[%emt 0:00:26]} 2. c4 {[%emt 0:00:15]} d6 {[%emt 0:00:34]} 3. Nf3 {[%emt 0:01:15]} g6 {[%emt 0:00:33]} 4. Nc3 {[%emt 0:00:30]} Bg7 {[%emt 0:00:23]} 5. e4 {[%emt 0:00:22]} O-O {[%emt 0:00:31]} 6. Be2 {[%emt 0:00:16]} e5 {[%emt 0:00:24]} 7. O-O {[%emt 0:00:18]} Bg4 {[%emt 0:00:47]} 8. d5 {[%emt 0:03:25]} a5 {[%emt 0:00:28]} 9. Bg5 {[%emt 0:00:58] E94: King's Indian: Classical: 6 Be2 e5 7 0-0: Various Black 7th moves.} Na6 {[%emt 0:01:28]} 10. Nd2 {[%emt 0:01:13]} Bd7 {[%emt 0:00:27]} 11. a3 {[%emt 0:02:04] White is slightly better.} h6 {[%emt 0:00:21]} 12. Bh4 {[%emt 0:06:07]} Qe8 {[%emt 0:05:35] [#]} 13. Nb5 $146 {[%emt 0:04:31]} ({Predecessor:} 13. b3 Nh7 14. Qc2 f5 15. f3 f4 16. Bf2 h5 17. b4 g5 18. Rfb1 g4 19. Bh4 {1-0 Lock,G (2182)-Radovanovic,J (2329) Portsmouth op 2005 (5)}) 13... Nh7 {[%emt 1:25:03]} (13... g5 $5 {[%cal Rg5h4]} 14. Bg3 Qb8 $11) 14. Kh1 {[%emt 0:09:24]} Bf6 {[%emt 0:00:00]} 15. Bxf6 {[%emt 0:02:05]} Nxf6 {[%emt 0:00:00]} 16. b4 {[%emt 0:08:20]} Qe7 {[%emt 0:00:00]} 17. Rb1 {[%emt 0:03:20]} axb4 {[%emt 0:00:00]} 18. axb4 {[%emt 0:00:25]} c5 {[%emt 0:00:00]} 19. dxc6 {[%emt 0:03:21]} bxc6 {[%emt 0:00:00]} 20. Nc3 {[%emt 0:00:11]} Rfb8 {[%emt 0:00:00]} 21. b5 {[%emt 0:00:52]} Nc5 {[%emt 0:00:00]} 22. f3 {[%emt 0:04:38]} Nh5 {[%emt 0:00:00][%cal Bf6h5,Bh5f4,Bf4e6,Be6d4][%mdl 32]} 23. Nb3 {[%emt 0:05:18]} Nf4 {[%emt 0:00:00]} 24. Nxc5 {[%emt 0:01:54]} dxc5 {[%emt 0:00:00]} 25. g3 {[%emt 0:08:05]} Ne6 {[%emt 0:00:00]} 26. Qd2 {[%emt 0:01:28]} h5 {[%emt 0:06:30]} (26... Kg7 $15) 27. h4 {[%emt 0:09:52]} (27. b6 Nd4 28. Rb2 (28. b7 $2 Ra7 $19) 28... Ra3 $15) (27. f4 $1 $14) 27... Nd4 $15 {[%emt 0:00:00]} 28. Rf2 {[%emt 0:23:58]} Be6 {[%emt 0:00:00]} 29. Bf1 {[%emt 0:00:00]} cxb5 {[%emt 0:01:30]} 30. cxb5 {[%emt 0:00:00]} ({White should play} 30. Nxb5 Qd8 31. Qd1) 30... c4 {[%emt 0:00:30]} (30... Ra3 $142 31. f4 c4) 31. f4 {[%emt 0:00:00] [#]} Rd8 {[%emt 0:00:00]} (31... Ra3 $1 $17 {Strongly threatening ...Rd8.} 32. Bg2 Nb3) 32. fxe5 $11 {[%emt 0:00:00]} Qc5 {[%emt 0:00:00][%cal Od4f3] ...Nf3! is the strong threat.} (32... Ra3 $5 {[%cal Rd4e2]} 33. Qe3 Qc5 $11) 33. Qf4 {[%emt 0:00:00] Inhibits Nf3.} ({Don't go for} 33. b6 $2 Nf3 34. Qb2 Rd2 35. Rxf3 (35. Rxd2 $2 Qg1#) (35. b7 {leads to mate.} Qxf2 36. bxa8=Q+ Kh7) 35... Rxb2 36. Rxb2 Qxe5 $19) 33... Ra3 {[%emt 0:00:00] [#]} 34. Nd5 {[%emt 0:00:00]} Bxd5 {[%emt 0:00:45]} (34... Nxb5 $2 35. Nf6+ (35. Qf6 Rf8 $11) 35... Kf8 36. Nh7+ Kg7 37. Ng5 $18) (34... Rxd5 {is interesting.} 35. exd5 Bxd5+ 36. Bg2 Bxg2+ 37. Kxg2 Qd5+) (34... Rxd5 35. exd5) 35. exd5 {[%emt 0:00:00]} Qxd5+ {[%emt 0:00:22]} 36. Bg2 {[%emt 0:00:00]} Qe6 {[%emt 0:00:03]} 37. Kh2 {[%emt 0:00:53]} (37. b6 $14 Nf5 38. b7) 37... Rb3 {[%emt 0:01:15]} (37... Nf5 $11 38. Bh3 Rdd3 39. Bxf5 gxf5) 38. Rd1 {[%emt 0:00:38]} ({White should try} 38. Rxb3 $16 cxb3 39. b6) 38... Rd3 {[%emt 0:00:06] The position is equal.} 39. Rxd3 {[%emt 0:02:28]} cxd3 {[%emt 0:00:01]} 40. b6 {[%emt 0:00:00]} Ne2 {[%emt 0:00:00]} (40... Qxb6 $2 41. Qxf7+ Kh8 42. Rf6 $18) 41. Qg5 {[%emt 0:06:28]} Qxb6 {[%emt 0:06:18] White must now prevent ...d2.} 42. Rf6 {[%emt 0:01:32]} Qg1+ {[%emt 0:01:46]} 43. Kh3 {[%emt 0:00:06] White wants to mate with e6. Really sharp!} Qd4 {[%emt 0:00:06][%cal Od4g4]} 44. Rxg6+ {[%emt 0:02:45][%mdl 64] Demolition} fxg6 {[%emt 0:00:05]} 45. Qxg6+ {[%emt 0:00:07]} Kf8 {[%emt 0:00:36] ( -> ...Qg4+)} 46. Qf6+ {[%emt 0:00:49]} Kg8 {[%emt 0:00:06] aiming for ...Qg4+.} 47. Qg6+ {[%emt 0:00:49] An exciting game.   Weighted Error Value: White=0.19 (very precise) /Black=0.19 (very precise)} 1/2-1/2

[Event "36th Belgrade Trophy 2023"]
[Site "Belgrade"]
[Date "2023.11.28"]
[Round "4.3"]
[White "Mezentsev, Ivan"]
[Black "Bryakin, Mikhail"]
[Result "0-1"]
[ECO "D41"]
[WhiteElo "2362"]
[BlackElo "2478"]
[Annotator "TA"]
[PlyCount "86"]
[EventDate "2023.10.23"]
[EventType "swiss"]
[EventCountry "SRB"]
[SourceTitle "playchess.com"]
[Source "ChessBase"]
[SourceQuality "1"]
[TimeControl "40/5400+30:900+30"]

{[%evp 20,86,23,12,22,26,28,14,14,0,0,0,0,0,0,0,15,0,0,0,25,0,0,-87,-92,-146,-167,-160,-140,-154,-73,-60,-56,-61,-11,-247,-243,-224,-241,-235,-236,-660,-650,-781,-781,-769,-781,-788,-786,-783,-781,-778,-705,-739,-737,-862,-847,-787,-775,-862,-819,-826,-826,-878,-843,-829,-792,-767,-760]} 1. d4 {[%emt 0:08:44]} Nf6 {[%emt 0:00:36]} 2. c4 {[%emt 0:00:36]} e6 {[%emt 0:00:56]} 3. Nf3 {[%emt 0:01:14]} d5 {[%emt 0:00:57]} 4. Nc3 {[%emt 0:00:41]} c5 {[%emt 0:00:24]} 5. cxd5 {[%emt 0:00:32]} Nxd5 {[%emt 0:00:11]} 6. e4 {[%emt 0:01:18]} Nxc3 {[%emt 0:00:09]} 7. bxc3 {[%emt 0:00:04]} cxd4 {[%emt 0:00:08]} 8. cxd4 {[%emt 0:00:11]} Bb4+ {[%emt 0:00:08]} 9. Bd2 {[%emt 0:00:19]} Bxd2+ {[%emt 0:00:12]} 10. Qxd2 {[%emt 0:00:04]} O-O {[%emt 0:00:14]} 11. Rc1 {[%emt 0:04:32]} Nd7 {[%emt 0:01:06] D41: Queen's Gambit Declined: Semi-Tarrasch with 5 cxd5.} 12. Bd3 {[%emt 0:00:57]} b6 {[%emt 0:01:03]} 13. O-O {[%emt 0:00:07]} Bb7 {[%emt 0:00:31] The position is equal.} 14. Qf4 {[%emt 0:09:57]} h6 {[%emt 0:20:58]} 15. h4 {[%emt 0:07:24]} Rc8 {[%emt 0:03:02]} 16. Rxc8 {[%emt 0:10:17]} Qxc8 {[%emt 0:00:28]} 17. Rc1 {[%emt 0:00:29]} Qa8 {[%emt 0:03:53] [#]} 18. Bb5 $146 {[%emt 0:13:46]} ({Predecessor:} 18. Nd2 Nf6 19. e5 Nd5 20. Qe4 Nf6 21. Qe1 Nd5 22. Ne4 Nf4 23. Bb1 Rc8 24. Rxc8+ Qxc8 {½-½ Pridorozhni,A (2574)-Anikonov,D (2382) Khanty-Mansiysk Governor Cup 14th 2018 (1)}) 18... Nf6 {[%emt 0:01:41]} 19. d5 $1 {[%emt 0:00:26]} exd5 {[%emt 0:01:31]} 20. e5 {[%emt 0:00:23]} Ne4 {[%emt 0:00:33]} 21. Rc7 {[%emt 0:08:14]} (21. Nd4 $11 {remains equal.}) 21... Nc5 $1 $36 {[%emt 0:05:02][%mdl 2048] White must now prevent ...Ne6. Black is on the roll.} 22. Nd4 {[%emt 0:00:50]} (22. Bd7 $142 Qd8 23. e6 fxe6 24. Qe5) 22... Qd8 {[%emt 0:02:00]} 23. e6 {[%emt 0:11:30]} fxe6 {[%emt 0:01:31]} ({Much worse is} 23... Nxe6 24. Nxe6 fxe6 25. Qe5 $11) 24. Qg3 {[%emt 0:00:26][%csl Gc7][%cal Rg3g7]} Rf7 {[%emt 0:03:00]} ({Black should play} 24... Qf6 25. Nxe6 Nxe6 26. Rxb7 Nc5) 25. Rxf7 {[%emt 0:00:46]} Kxf7 {[%emt 0:00:45]} 26. h5 {[%emt 0:00:19]} a6 {[%emt 0:18:57]} (26... Kg8 $15) 27. Qg6+ $2 {[%emt 0:01:56] Now White is beyond hope.} (27. Be2 $1 $11 {and White stays safe.}) 27... Kf8 $19 {[%emt 0:01:16]} 28. Qh7 {[%emt 0:01:32] [#] aiming for Qh8+.} Qe7 $1 {[%emt 0:04:00]} ({Inferior is} 28... axb5 29. Qh8+ Ke7 30. Qxg7+ Ke8 31. Qh8+ Kd7 32. Qxh6) 29. Qh8+ {[%emt 0:08:11]} Kf7 {[%emt 0:00:07]} 30. Nf3 $2 {[%emt 0:00:30]} (30. Bc6 Bxc6 31. Nxc6) 30... axb5 {[%emt 0:04:59] Black is clearly winning.} 31. Ne5+ {[%emt 0:00:03]} Kf6 {[%emt 0:25:42][%cal Bf7f6,Bf6g5,Bg5h5,Bh5g4,Bg4f4,Bf4f5,Bf5g6,Bg6g7,Bg7g8][%mdl 32]} 32. Qb8 {[%emt 0:00:01] [#]} Nd7 $1 {[%emt 0:00:00]} 33. Ng4+ {[%emt 0:00:12]} Kg5 {[%emt 0:00:00]} 34. Qg3 {[%emt 0:03:01]} Kxh5 {[%emt 0:00:00]} 35. Ne3 {[%emt 0:02:34]} g5 {[%emt 0:00:00]} 36. Ng4 {[%emt 0:00:34]} Qf8 {[%emt 0:00:00]} 37. Qc7 {[%emt 0:04:59]} Kxg4 {[%emt 0:00:00]} 38. Qxd7 {[%emt 0:00:04]} Bc8 {[%emt 0:00:00]} 39. Qh7 {[%emt 0:00:03]} Kf4 {[%emt 0:00:00]} 40. Qc7+ {[%emt 0:00:00]} Kf5 {[%emt 0:00:00]} 41. Qc3 {[%emt 0:01:43]} Kg6 {[%emt 0:00:00]} 42. Qc2+ {[%emt 0:00:11]} Kg7 {[%emt 0:00:00] ...Qc5 is the strong threat.} 43. Qc7+ {[%emt 0:00:05]} Kg8 {[%emt 0:00:00] Weighted Error Value: White=0.53/Black=0.14 (very precise)} 0-1

[Event "36th Belgrade Trophy 2023"]
[Site "Belgrade"]
[Date "2023.11.28"]
[Round "4.4"]
[White "Kilic, Eray"]
[Black "Liu, Zexu"]
[Result "1/2-1/2"]
[ECO "C47"]
[WhiteElo "2446"]
[BlackElo "2286"]
[Annotator "TA"]
[PlyCount "94"]
[EventDate "2023.10.23"]
[EventType "swiss"]
[EventCountry "SRB"]
[SourceTitle "playchess.com"]
[Source "ChessBase"]
[SourceQuality "1"]
[TimeControl "40/5400+30:900+30"]

{[%evp 9,94,0,0,0,0,0,0,0,12,15,25,16,8,14,12,14,17,-5,-13,-19,8,18,20,9,9,9,0,8,5,0,0,0,0,0,0,0,0,0,0,0,0,0,0,0,0,0,0,0,0,0,0,0,0,-37,-62,-62,-62,-62,-62,-62,-62,-69,-67,-68,-75,-82,-76,-97,-14,-14,-14,-28,-38,-47,-8,-8,-8,-8,-8,-8,-8,-8,-8,-8,-8,-8,-8]} 1. e4 {[%emt 0:00:03]} e5 {[%emt 0:00:23]} 2. Nf3 {[%emt 0:00:04]} Nc6 {[%emt 0:00:03]} 3. Nc3 {[%emt 0:00:05]} Nf6 {[%emt 0:00:03]} 4. h3 {[%emt 0:00:03]} d5 {[%emt 0:00:15]} 5. exd5 {[%emt 0:00:04]} Nxd5 {[%emt 0:00:05]} 6. Bb5 {[%emt 0:00:04] C47: Scotch Four Knights and Four Knights with 4 g3.} Nxc3 {[%emt 0:00:07]} 7. bxc3 {[%emt 0:00:04]} Bd6 {[%emt 0:00:08]} 8. d4 {[%emt 0:00:04]} exd4 {[%emt 0:00:27]} 9. O-O {[%emt 0:00:06]} (9. Qxd4 O-O 10. Bxc6 bxc6 $15) 9... O-O {[%emt 0:00:10]} (9... dxc3 {with more complications.} 10. Bg5 Qd7 11. Re1+ Kf8) 10. cxd4 {[%emt 0:00:04]} Bf5 {[%emt 0:00:19]} 11. Bg5 {[%emt 0:00:06]} f6 {[%emt 0:05:17]} 12. Be3 {[%emt 0:03:22] [#]} Kh8 $146 {[%emt 0:01:59]} ({Predecessor:} 12... Ne7 13. c4 c6 14. Ba4 Kh8 15. Nh4 Qd7 16. Qf3 Bd3 17. Rfc1 g5 18. Bd2 Bxc4 19. Rxc4 {1-0 Ibarra Jerez,J (2563)-Parvanyan,A (2431) Titled Tuesday intern op 02nd May Late blitz 2023 (1)}) 13. d5 {[%emt 0:04:14]} Ne7 {[%emt 0:05:46][%cal Oe7d5]} 14. c4 {[%emt 0:03:42][%cal Bc2c4,Bc4c5][%mdl 32]} c6 {[%emt 0:02:14]} (14... a6 $5 {[%cal Ra6b5]} 15. Ba4 b5 16. cxb5 Nxd5 $15) 15. dxc6 {[%emt 0:00:14]} bxc6 {[%emt 0:00:59]} 16. c5 {[%emt 0:04:07]} Be5 {[%emt 0:07:22]} 17. Nxe5 {[%emt 0:01:13]} cxb5 {[%emt 0:00:13]} 18. Nf3 {[%emt 0:00:53]} Nc6 {[%emt 0:07:47]} 19. Qb3 {[%emt 0:05:53]} Qd3 {[%emt 0:02:58]} 20. Rfd1 {[%emt 0:00:46]} Qxb3 {[%emt 0:00:17]} 21. axb3 {[%emt 0:00:05]} a5 {[%emt 0:04:21]} 22. Rd6 {[%emt 0:01:29]} Rfc8 {[%emt 0:01:04]} 23. Nd4 {[%emt 0:00:26]} Nxd4 {[%emt 0:00:15]} 24. Bxd4 {[%emt 0:00:04]} a4 {[%emt 0:07:36]} 25. bxa4 {[%emt 0:00:04]} bxa4 {[%emt 0:00:35]} 26. g4 {[%emt 0:00:04]} Bg6 {[%emt 0:07:44]} 27. g5 {[%emt 0:11:08]} fxg5 {[%emt 0:01:31]} 28. Rd7 {[%emt 0:00:05]} Rg8 {[%emt 0:17:09]} 29. Re1 {[%emt 0:00:09] Strongly threatening Ree7.} a3 {[%emt 0:07:16][%cal Ba4a3,Ba3a2][%mdl 32]} 30. c6 {[%emt 0:00:26]} Be8 {[%emt 0:04:22]} 31. Rxg7 {[%emt 0:05:37]} Rxg7 {[%emt 0:00:17]} 32. Re7 {[%emt 0:00:09][%mdl 64] [#] Pin} a2 $1 {[%emt 0:01:10]} 33. Ba1 {[%emt 0:00:03][%mdl 64] [#] Pin} ({But not} 33. Bxg7+ Kg8 34. c7 Bf7 $17) 33... Kg8 {[%emt 0:05:07]} 34. Rxg7+ $15 {[%emt 0:00:05][%mdl 4096] Endgame KRB-KRB} Kf8 {[%emt 0:00:02]} 35. c7 {[%emt 0:00:19]} Rc8 {[%emt 0:02:32]} 36. Kh2 {[%emt 0:03:52]} Bf7 {[%emt 0:02:11]} 37. Rxg5 {[%emt 0:00:05]} Rxc7 {[%emt 0:00:07]} 38. Ra5 {[%emt 0:00:07]} h5 {[%emt 0:03:36]} ({Better is} 38... Rb7 $17 39. f4 Ke7) 39. Kg3 $11 {[%emt 0:00:52]} Ke7 {[%emt 0:00:47]} 40. Be5 {[%emt 0:00:00]} Rb7 {[%emt 0:00:00]} 41. f4 {[%emt 0:01:43]} Be6 {[%emt 0:07:18]} (41... Kd7 $5 {[%cal Rd7c6]}) 42. Kh4 {[%emt 0:01:12] The position is equal.} (42. f5 {simplifies} Bxf5 43. Rxa2 Rb3+ 44. Kh4) 42... Rb3 {[%emt 0:00:59]} 43. Ra7+ {[%emt 0:00:03]} Ke8 {[%emt 0:04:53]} 44. Kxh5 {[%emt 0:00:15]} Rxh3+ {[%emt 0:00:39]} 45. Kg6 {[%emt 0:00:07]} Rf3 {[%emt 0:01:39]} 46. Kf6 {[%emt 0:00:29]} Bc4 {[%emt 0:00:42]} 47. Kf5 {[%emt 0:00:32]} Rf1 {[%emt 0:01:10] An interesting game.   Weighted Error Value: White=0.03 (flawless) /Black=0.05 (flawless)} 1/2-1/2

[Event "36th Belgrade Trophy 2023"]
[Site "Belgrade"]
[Date "2023.11.28"]
[Round "4.5"]
[White "Enkhnar, Enkhbaatar"]
[Black "Blagojevic, Dragisa"]
[Result "0-1"]
[ECO "E04"]
[WhiteElo "2327"]
[BlackElo "2438"]
[Annotator "TA"]
[PlyCount "90"]
[EventDate "2023.10.23"]
[EventType "swiss"]
[EventCountry "SRB"]
[SourceTitle "playchess.com"]
[Source "ChessBase"]
[SourceQuality "1"]
[TimeControl "40/5400+30:900+30"]

{[%evp 9,90,11,30,15,7,0,-12,-83,-7,-12,-2,-53,-27,-38,-33,-35,-23,-62,-64,-56,-64,-66,-59,-68,-60,-178,-177,-174,-177,-189,-187,-339,-338,-340,-332,-335,-335,-397,-393,-387,-352,-332,-350,-356,-347,-354,-356,-349,-316,-366,-350,-569,-562,-581,-593,-683,-388,-388,-388,-388,-388,-388,-383,-381,-381,-375,-368,-620,-613,-612,-608,-599,-577,-583,-551,-1558,-1494,-1441,-1468,-1188,-1149,-861,-708]} 1. Nf3 {[%emt 0:00:36]} d5 {[%emt 0:00:39][%cal Bd7d5,Bd5c4][%mdl 32]} 2. d4 {[%emt 0:00:20]} Nf6 {[%emt 0:00:09]} 3. c4 {[%emt 0:00:13]} e6 {[%emt 1:31:12]} 4. g3 {[%emt 1:31:21]} dxc4 {[%emt 0:00:00]} 5. Bg2 {[%emt 0:00:30]} Nbd7 {[%emt 0:01:00]} 6. Qc2 {[%emt 0:00:30] E04: Open Catalan: 5 Nf3.} b5 {[%emt 0:00:30]} 7. a4 {[%emt 0:00:30]} (7. Ne5 {looks sharper.} Nxe5 8. Bxa8 Qxd4 9. Be3) 7... c6 {[%emt 0:00:30] [#]} (7... Bb4+ 8. Bd2 a5 9. axb5 $14) 8. b3 $146 {[%emt 0:00:30] [#]} (8. axb5 $11 {keeps the balance.} cxb5 9. Nh4) ({Predecessor:} 8. O-O Be7 9. b3 cxb3 10. Qxc6 Rb8 11. axb5 Bb7 12. Qc3 Bd5 13. Qa5 O-O 14. Bb2 {1-0 Gorovets,A (2463)-Philippe,G (2362) Titled Tuesday intern op 18th Jul Early blitz 2023 (3)}) 8... Bb7 {[%emt 0:00:30]} ({Black should play} 8... cxb3 $1 $17 9. Qxb3 b4) 9. bxc4 $11 {[%emt 0:00:00]} bxc4 {[%emt 0:00:30]} 10. Nc3 {[%emt 0:01:00]} (10. Qxc4 $11 c5 11. O-O) 10... Nd5 {[%emt 0:00:30]} (10... c5 $5 {[%cal Rc5d4]} 11. Rb1 Bxf3 {[%mdl 64] Remove Defender} 12. Bxf3 cxd4 $17) 11. O-O {[%emt 0:00:30]} Nb4 {[%emt 0:00:30]} 12. Qb1 {[%emt 0:00:30]} a5 {[%emt 0:00:30]} 13. Rd1 {[%emt 0:00:30]} Be7 {[%emt 0:00:30][%cal Bf8e7,Be7c5,Bc5f2][%mdl 32]} 14. Bf4 {[%emt 0:00:30]} O-O {[%emt 0:00:30]} 15. Ne4 {[%emt 0:00:30][%cal Oe4c5]} Ba6 {[%emt 0:00:00]} 16. Qc1 {[%emt 0:00:30]} (16. Neg5 Nf6 17. Ne4 Nxe4 18. Qxe4 c3 $17) 16... Nd5 {[%emt 0:01:00]} 17. Nc5 {[%emt 0:00:30] Black keeps a firm grip on the game.} Nxc5 $19 {[%emt 0:00:30]} 18. dxc5 {[%emt 0:00:30]} Bxc5 {[%emt 0:00:30]} 19. Ne5 {[%emt 0:00:30]} Qc7 {[%emt 0:00:30][%cal Og7g5] Strongly threatening ...g5!} 20. Bxd5 $2 {[%emt 0:00:00]} (20. Nxc4 Qa7 21. e3) 20... cxd5 {[%emt 0:00:00]} (20... exd5 $2 21. Ng6 Qa7 22. Nxf8 $19) 21. Ng6 {[%emt 0:01:00]} Qa7 {[%emt 0:01:00]} (21... Bxf2+ 22. Kg2 Qb6 23. Nxf8 Rxf8 24. e3 $17) 22. Nxf8 {[%emt 0:00:30]} Rxf8 {[%emt 0:00:30]} (22... Kxf8 $2 {loses.} 23. e3 $19) ({Worse is} 22... Bxf2+ 23. Kg2 Bc5 24. Nxe6 (24. Nxh7 $2 Kxh7 25. h3 d4 $19) 24... fxe6 25. Be5 $19) 23. Qc3 {[%emt 0:00:30][%cal Of4e3]} Bxf2+ {[%emt 0:00:00] This pair of bishops is nice.} 24. Kf1 {[%emt 0:00:30]} Bb6 {[%emt 0:01:00]} 25. Be5 {[%emt 0:00:30]} f6 {[%emt 0:00:30]} 26. Bd4 {[%emt 0:00:30]} Bxd4 {[%emt 0:00:30]} 27. Qxd4 {[%emt 0:00:30]} Qxd4 {[%emt 0:00:30]} 28. Rxd4 {[%emt 0:00:30][%mdl 4096] Endgame KRR-KRB} Rb8 {[%emt 0:00:30]} 29. Ke1 {[%emt 0:00:30]} Rb4 {[%emt 0:00:30]} 30. Rdd1 $2 {[%emt 0:00:30]} (30. e3) 30... c3 {[%emt 0:00:30] ...Rb2 would be deadly.} 31. Rdc1 {[%emt 0:00:30]} d4 {[%emt 0:00:30] [#] Hoping for ...Rb2.} 32. Rcb1 {[%emt 0:00:30]} d3 {[%emt 0:00:30]} 33. exd3 {[%emt 0:00:30]} Bxd3 {[%emt 0:00:30]} 34. Rc1 {[%emt 0:00:30]} c2 {[%emt 0:00:30]} 35. Ra3 {[%emt 0:00:30]} Bf5 {[%emt 0:00:30]} 36. Kd2 {[%emt 0:00:30]} h5 {[%emt 0:00:30]} 37. Rf1 {[%emt 0:00:30]} Kh7 {[%emt 0:00:30]} 38. h4 $2 {[%emt 0:00:00]} (38. Rc1) 38... Rb1 {[%emt 0:00:00] Black is clearly winning.} 39. Rc1 {[%emt 0:00:00]} Kg6 {[%emt 0:00:00]} 40. Rf3 {[%emt 0:00:00]} Rb4 {[%emt 0:00:00]} 41. Rf4 {[%emt 0:17:00]} Be4 {[%emt 0:00:00]} 42. g4 {[%emt 0:00:00]} e5 {[%emt 0:00:00]} 43. gxh5+ {[%emt 0:00:00]} Kxh5 {[%emt 0:00:00]} 44. Rf2 {[%emt 0:00:00]} Rxa4 {[%emt 0:00:13]} 45. Rg1 {[%emt 0:00:00]} Kh6 {[%emt 0:00:53] Weighted Error Value: White=0.44/Black=0.15 (very precise)} (45... Kxh4 $2 46. Rh2#) ({Wrong is} 45... c1=R $2 46. Rxc1 f5 47. Rc7 $19) 0-1